[Event "Krakow Championship-A 2022"]
[Site "Krakow"]
[Date "2022.06.27"]
[Round "4.8"]
[White "Skytte, Rasmus"]
[Black "Nguyen, Piotr"]
[Result "0-1"]
[ECO "C47"]
[WhiteElo "2357"]
[BlackElo "2402"]
[Annotator "TA"]
[PlyCount "198"]
[EventDate "2022.06.25"]
[EventType "swiss"]
[EventCountry "POL"]
[SourceTitle "playchess.com"]
[Source "ChessBase"]
[SourceQuality "1"]
[TimeControl "40/5400+30:1800+30"]

{[%evp 18,198,-28,-22,22,26,16,6,15,-37,-25,-33,-32,-41,-36,-26,-18,-20,-22,-17,-20,-22,-29,-31,-2,-45,-29,-68,-31,-77,-76,-58,-47,-200,-209,-201,-187,-191,-206,-192,-194,-193,-207,-210,-201,-194,-65,-53,0,-182,0,0,8,0,89,0,0,-17,0,-35,-33,-62,-62,-68,-34,-36,-36,-27,-29,-44,-44,-44,-44,-44,-44,-56,-56,-56,-56,-56,-56,-56,-56,-56,-56,-56,-56,-56,-44,-51,-44,-51,-51,-51,-37,-37,0,0,0,-37,0,-51,-51,-56,-44,-51,-51,-95,-51,-95,-51,-104,-104,-104,-51,-51,0,-104,-104,-104,-104,-104,-104,-104,-104,-104,-104,-104,-104,-104,-104,-104,0,-104,-39,-104,-104,-104,-104,-104,-104,-104,-104,-104,-105,-105,-95,-95,-95,-104,0,-95,0,-14,-14,-45,0,0,0,0,0,0,0,0,0,0,0,0,0,0,0,0,0,0,0,0,0,0,0,0,0,-29964,-893]} 1. e4 {[%emt 0:00:08]} e5 {[%emt 0:00:07]} 2. Nc3 {[%emt 0:03:32]} Nc6 {[%emt 0:00:13]} 3. Nf3 {[%emt 0:04:46]} Nf6 {[%emt 0:00:36]} 4. g3 {[%emt 0:01:08]} Bc5 {[%emt 0:07:48]} 5. Bg2 {[%emt 0:01:44]} d6 {[%emt 0:00:31]} 6. d3 {[%emt 0:01:25]} a5 {[%emt 0:02:32]} 7. h3 {[%emt 0:03:55]} O-O {[%emt 0:00:58]} 8. O-O {[%emt 0:04:34]} h6 {[%emt 0:02:59]} 9. Nh4 {[%emt 0:11:09]} Nd4 {[%emt 0:04:23]} 10. Ne2 {[%emt 0:05:44]} d5 {[%emt 0:06:23]} 11. Nxd4 {[%emt 0:03:46]} Bxd4 {[%emt 0:00:58]} 12. c3 {[%emt 0:07:40]} Bb6 {[%emt 0:06:56]} 13. Qf3 {[%emt 0:01:17]} (13. exd5 $11 Nxd5 14. Re1) 13... c6 $15 {[%emt 0:02:55]} 14. Re1 {[%emt 0:02:08]} Re8 {[%emt 0:04:22]} 15. Nf5 {[%emt 0:03:09]} Bxf5 {[%emt 0:02:00]} 16. Qxf5 {[%emt 0:00:25]} dxe4 {[%emt 0:03:46]} 17. dxe4 {[%emt 0:01:05]} Re6 {[%emt 0:03:59]} 18. Qf3 {[%emt 0:08:12]} Rd6 {[%emt 0:04:54]} 19. Bf1 {[%emt 0:02:05]} Qc7 {[%emt 0:08:43]} 20. Be3 {[%emt 0:16:05]} Rad8 {[%emt 0:01:25]} 21. Bc4 {[%emt 0:02:37]} a4 {[%emt 0:07:58]} 22. b3 {[%emt 0:02:07]} a3 {[%emt 0:01:22]} 23. b4 {[%emt 0:02:50]} (23. Bxb6 $15 Qxb6 24. Rad1) 23... Bxe3 $17 {[%emt 0:02:28]} 24. Rxe3 {[%emt 0:01:46]} Rd2 {[%emt 0:06:20]} 25. Rd3 $2 {[%emt 0:07:40]} (25. Rae1 $15) 25... R8xd3 $1 $19 {[%emt 0:04:38]} 26. Bxd3 {[%emt 0:00:07]} Qd7 {[%emt 0:00:09]} 27. Bf1 {[%emt 0:00:36]} Qe6 {[%emt 0:00:29]} 28. c4 {[%emt 0:00:26]} Qd6 $1 {[%emt 0:00:16]} 29. Qxa3 {[%emt 0:01:07]} Nxe4 {[%emt 0:02:45]} 30. Re1 {[%emt 0:00:53]} Nxf2 {[%emt 0:01:31]} 31. Qe3 {[%emt 0:00:50]} Rxa2 {[%emt 0:03:58]} ({And not} 31... Qxb4 32. Re2 Nxh3+ 33. Bxh3 Rxe2 34. Qxe2 $11) (31... e4 $19 32. c5 Qd5) 32. Qxe5 $15 {[%emt 0:00:20]} Qg6 {[%emt 0:04:08]} ({Don't do} 32... Qxb4 33. Re2 Rxe2 34. Qxe2 $14) (32... Qxe5 $15 33. Rxe5 Kf8) 33. g4 $2 {[%emt 0:01:01] [#]} (33. Re3 $11) 33... Kh7 $2 {[%emt 0:02:54]} (33... Nxg4 $1 $19 {[%mdl 512]} 34. Qb8+ (34. hxg4 $2 Qxg4+ 35. Kh1 Qh4+ 36. Kg1 Qf2+ 37. Kh1 Rd2 $19) 34... Kh7) 34. Re3 $11 {[%emt 0:00:36]} Rd2 {[%emt 0:00:50]} 35. Rf3 {[%emt 0:00:33]} Nd1 {[%emt 0:01:04] [#]} (35... Ne4 $11) 36. Qf4 {[%emt 0:00:24]} (36. c5 $1 $16) 36... Rd7 $11 {[%emt 0:00:21]} 37. c5 {[%emt 0:00:27]} Nb2 {[%emt 0:00:41]} 38. b5 {[%emt 0:00:23]} Qc2 {[%emt 0:00:21]} 39. Qf5+ {[%emt 0:00:48]} Qxf5 {[%emt 0:00:04]} 40. Rxf5 {[%emt 0:00:05]} g6 {[%emt 0:00:54]} 41. bxc6 {[%emt 0:30:37]} bxc6 {[%emt 0:30:06]} 42. Rf6 {[%emt 0:00:20]} Rc7 {[%emt 0:01:06]} 43. Rf4 {[%emt 0:00:00]} Kg7 {[%emt 0:00:00]} 44. Rb4 {[%emt 0:00:00]} Nd1 {[%emt 0:00:00]} 45. Rb3 {[%emt 0:00:00]} Re7 {[%emt 0:00:00]} 46. Bg2 {[%emt 0:00:00]} Re1+ {[%emt 0:00:00]} 47. Kh2 {[%emt 0:00:00]} Re6 {[%emt 0:00:00]} 48. Kg3 {[%emt 0:00:00]} Ne3 {[%emt 0:00:00]} 49. Bxc6 {[%emt 0:00:00]} Nf1+ {[%emt 0:00:00]} 50. Kf2 {[%emt 0:00:00]} Rxc6 {[%emt 0:00:00]} 51. Kxf1 {[%emt 0:00:00]} Rxc5 {[%emt 0:00:00]} 52. Kg2 {[%emt 0:00:00]} Kf6 {[%emt 0:00:00]} 53. Kg3 {[%emt 0:00:00]} Rd5 {[%emt 0:00:00]} 54. Re3 {[%emt 0:00:00]} Rd4 {[%emt 0:00:00]} 55. Rf3+ {[%emt 0:00:00]} Ke6 {[%emt 0:00:00]} 56. Re3+ {[%emt 0:00:00]} Kd5 {[%emt 0:03:33]} 57. Rf3 {[%emt 0:00:00]} Ke6 {[%emt 0:00:22]} 58. Re3+ {[%emt 0:00:00]} Kf6 {[%emt 0:00:09]} 59. Rf3+ {[%emt 0:00:00]} Kg7 {[%emt 0:00:05]} 60. Ra3 {[%emt 0:00:00]} h5 {[%emt 0:01:04]} 61. Rb3 {[%emt 0:00:00]} Kh6 {[%emt 0:01:59]} 62. Ra3 {[%emt 0:02:46]} f6 {[%emt 0:00:24]} 63. Rb3 {[%emt 0:00:38]} Rd1 {[%emt 0:00:14]} 64. Rb5 {[%emt 0:05:17]} (64. Rb6 $1 $15) 64... Rd3+ $17 {[%emt 0:01:20]} 65. Kg2 {[%emt 0:01:00]} Rd2+ {[%emt 0:01:18]} (65... h4 $17 66. Ra5 Rd2+ 67. Kg1 Rc2) 66. Kg3 $1 $15 {[%emt 0:00:39]} Rd3+ {[%emt 0:00:04]} (66... Rd6 $15) 67. Kg2 $17 {[%emt 0:00:05]} h4 {[%emt 0:00:22]} 68. Ra5 {[%emt 0:00:48]} Rd2+ {[%emt 0:00:16]} 69. Kg1 {[%emt 0:00:40]} Re2 {[%emt 0:00:45]} 70. Rb5 {[%emt 0:00:40]} Re5 {[%emt 0:00:47]} 71. Rb2 {[%emt 0:00:24]} Rd5 {[%emt 0:00:57]} 72. Kg2 {[%emt 0:00:16]} Rd7 {[%emt 0:00:19]} 73. Rb5 {[%emt 0:00:36]} Rd2+ {[%emt 0:00:43]} 74. Kg1 {[%emt 0:00:18]} Rd7 {[%emt 0:01:00]} 75. Kg2 $1 {[%emt 0:00:10]} Kg7 {[%emt 0:00:22]} (75... Rd1 $17 76. Kf2 Rd3) 76. Rb2 {[%emt 0:00:29]} ({White should try} 76. g5 $1 $15) 76... Kf7 {[%emt 0:00:08]} 77. Re2 {[%emt 0:00:25]} Re7 {[%emt 0:00:05]} 78. Ra2 {[%emt 0:00:19]} Re3 {[%emt 0:00:12]} 79. Ra6 {[%emt 0:01:07]} Ke7 {[%emt 0:00:04]} 80. Rb6 {[%emt 0:00:46]} Rd3 {[%emt 0:00:16]} 81. Ra6 {[%emt 0:00:47]} Rd6 {[%emt 0:00:43]} 82. Ra2 {[%emt 0:01:06]} Ke6 {[%emt 0:00:47]} 83. Re2+ {[%emt 0:00:38]} Kd5 {[%emt 0:00:04]} (83... Kf7 $17 84. Re3 Kg7) 84. Kf3 {[%emt 0:00:41]} (84. g5 $1 $11) 84... Kc4 {[%emt 0:00:36]} (84... Ra6 $17 85. Rd2+ Ke6) 85. Rc2+ {[%emt 0:00:49]} Kd3 {[%emt 0:00:09]} 86. Ra2 {[%emt 0:00:28]} (86. Rc1 $5 {[%cal Rc1d1]} Kd4 87. g5 $15) 86... Rc6 {[%emt 0:01:02]} 87. g5 {[%emt 0:00:43]} f5 {[%emt 0:00:57]} 88. Ra4 {[%emt 0:00:24]} Rc1 {[%emt 0:01:26]} 89. Rxh4 {[%emt 0:00:33]} Rf1+ {[%emt 0:00:41]} 90. Kg2 {[%emt 0:00:38]} Ke2 {[%emt 0:00:02]} 91. Ra4 {[%emt 0:00:22]} Rf2+ {[%emt 0:00:23]} 92. Kg3 {[%emt 0:00:21]} Rf3+ {[%emt 0:00:03]} 93. Kg2 {[%emt 0:00:32]} Rd3 {[%emt 0:01:16]} 94. Rf4 {[%emt 0:00:36]} Rd1 {[%emt 0:00:37]} 95. Ra4 {[%emt 0:00:52]} Ke3 {[%emt 0:00:23]} 96. h4 {[%emt 0:00:19]} f4 {[%emt 0:00:25]} 97. Ra3+ {[%emt 0:00:26]} Ke4 {[%emt 0:00:11]} 98. Rb3 $1 {[%emt 0:00:21]} Rd2+ {[%emt 0:00:36]} 99. Kg1 $2 {[%mdl 8192]} (99. Kh3 $11) 99... Kf5 (99... f3 $142 100. h5 Kf4 101. Kf1 Kg3 102. Ke1 Re2+ 103. Kd1 gxh5 104. g6 Re7 105. Kc2 h4 106. Kd2 h3 107. Kd3 f2 108. Kd2+ Kg2 109. g7 Rxg7 110. Kc3 f1=Q 111. Kb4 Qc1 112. Rc3 Rg4+ 113. Kb3 Qb1+ 114. Ka3 Qb4+ 115. Ka2 Qxc3 116. Kb1 Rb4+ 117. Ka2 Qb2#) 0-1

[Event "Krakow Championship-A 2022"]
[Site "Krakow"]
[Date "2022.06.27"]
[Round "4.9"]
[White "Romanishin, Oleg M"]
[Black "Lye, Lik Zang"]
[Result "1-0"]
[ECO "A06"]
[WhiteElo "2400"]
[BlackElo "2358"]
[Annotator "TA"]
[PlyCount "111"]
[EventDate "2022.06.25"]
[EventType "swiss"]
[EventCountry "POL"]
[SourceTitle "playchess.com"]
[Source "ChessBase"]
[SourceQuality "1"]
[TimeControl "40/5400+30:1800+30"]

{[%evp 9,111,12,18,0,0,-3,3,4,6,3,2,2,19,18,16,23,49,38,43,20,23,27,4,9,14,16,35,44,91,47,53,55,54,52,79,62,113,62,56,60,55,37,42,43,94,87,108,105,152,159,166,148,139,137,214,207,333,203,210,208,231,231,231,230,221,166,254,196,189,190,205,160,268,257,344,344,319,279,419,411,935,485,764,506,492,467,460,459,459,458,5720,5779,5584,5238,5081,5057,4119,3126,5685,5616,29967,2483,1081,960]} 1. Nf3 {[%emt 0:00:08]} d5 {[%emt 0:01:02]} 2. g3 {[%emt 0:00:37]} c6 {[%emt 0:00:36]} 3. Bg2 {[%emt 0:03:20]} Bg4 {[%emt 0:00:17]} 4. c4 {[%emt 0:00:07]} e6 {[%emt 0:00:12]} 5. Qb3 {[%emt 0:02:28]} Qb6 {[%emt 0:00:27]} 6. d3 {[%emt 0:00:08] A11: English Opening: 1...c6.} Nd7 {[%emt 0:01:17]} 7. Be3 {[%emt 0:00:14]} Bc5 {[%emt 0:00:34]} 8. Bxc5 {[%emt 0:00:11] The position is equal.} Nxc5 {[%emt 0:00:23]} 9. Qc3 {[%emt 0:00:06]} Nf6 {[%emt 0:00:21]} 10. Nbd2 {[%emt 0:01:14] [#]} a5 $146 {[%emt 0:01:25]} ({Predecessor:} 10... Bxf3 11. Bxf3 O-O 12. O-O a5 13. Rac1 Ncd7 14. d4 a4 15. e3 Qa5 16. Qc2 h6 {½-½ (28) Romanishin,O (2451)-Vaganian,R (2526) Platja d'Aro 2019}) 11. Ne5 {[%emt 0:15:46]} Bh5 {[%emt 0:08:10]} 12. Rc1 {[%emt 0:06:01] Black must now prevent cxd5.} Ncd7 {[%emt 0:16:59]} 13. Nxd7 {[%emt 0:09:59]} Kxd7 {[%emt 0:00:42]} 14. c5 {[%emt 0:14:58]} Qb4 {[%emt 0:14:05]} 15. Qe5 {[%emt 0:00:15]} a4 {[%emt 0:04:15]} 16. Rc2 {[%emt 0:02:50]} Qa5 {[%emt 0:03:20]} 17. e4 {[%emt 0:08:14]} Qc7 {[%emt 0:16:46]} 18. Qd4 {[%emt 0:00:56] e5 is the strong threat.} Ke7 {[%emt 0:01:29]} (18... e5 $14 19. Qe3 Ke7) 19. O-O {[%emt 0:09:36] And now e5 would win.} e5 {[%emt 0:03:38]} 20. Qb4 {[%emt 0:07:11] Hoping for exd5.} dxe4 {[%emt 0:15:03]} (20... Be2 $2 21. exd5 $1 Nxd5 22. Bxd5 Bxd3 23. Be4 (23. Qh4+ Kf8 $16) 23... Bxf1 24. Kxf1 $18 (24. Nxf1 g6 $16)) 21. Nxe4 {[%emt 0:00:34]} Nxe4 {[%emt 0:00:44]} 22. Bxe4 {[%emt 0:01:31]} Qd7 {[%emt 0:05:10]} (22... Rhd8 $14) 23. Bxc6 {[%emt 0:06:22]} bxc6 $14 {[%emt 0:00:59]} 24. Qh4+ {[%emt 0:00:05]} f6 {[%emt 0:00:23]} 25. Qxh5 {[%emt 0:00:07][%cal Od3d4]} Qxd3 {[%emt 0:00:17]} 26. Rc3 {[%emt 0:00:21]} Qb5 {[%emt 0:03:00]} ({Black should play} 26... g6 $14 27. Qxe5+ (27. Rxd3 gxh5 28. Rd6 Rhb8 $14) 27... fxe5 28. Rxd3 Rhb8) 27. Qg4 $16 {[%emt 0:01:42] Black is on the road to losing.} g6 {[%emt 0:00:28]} 28. b3 {[%emt 0:01:58]} (28. Rd1 $6 Rad8 $11) 28... Rhd8 {[%emt 0:01:20]} (28... Rhf8 $142) 29. Qh4 $1 {[%emt 0:01:25]} h5 {[%emt 0:00:18]} 30. Rf3 $36 {[%emt 0:00:44][%mdl 2048] Keeping Black busy.} Rf8 {[%emt 0:00:25] [#]} 31. Qe4 $1 {[%emt 0:01:00]} Qxc5 {[%emt 0:01:10]} (31... axb3 $2 32. Rxb3 Qxc5 33. Qxg6) (31... Rg8 $16 {is a better defense.}) 32. Qxg6 $18 {[%emt 0:00:39]} axb3 {[%emt 0:00:32]} (32... Rad8 $142 33. bxa4 Qc4) 33. axb3 {[%emt 0:01:49]} Qd5 {[%emt 0:00:36]} 34. Rd3 {[%emt 0:00:51]} (34. Qxh5 Rh8 35. Qg4 Rag8) 34... Qf7 {[%emt 0:00:22]} 35. Qe4 {[%emt 0:00:53]} (35. Qf5 Rfd8 $16) 35... Rfd8 {[%emt 0:00:40]} 36. Rfd1 {[%emt 0:02:42][%cal Bf1d1,Bd1c1,Bc1c5][%mdl 32]} ({Less strong is} 36. Qxc6 Rxd3 37. Qxa8 Qxb3 $14) 36... Rxd3 {[%emt 0:00:21]} 37. Qxd3 {[%emt 0:00:47][%mdl 4096] Endgame White wants to mate with Qd6+. KQR-KQR} Ke8 {[%emt 0:00:40]} (37... Kf8 {was necessary.} 38. Qd6+ Kg7) 38. Qd6 {[%emt 0:01:03]} Rc8 {[%emt 0:00:11]} 39. Rc1 {[%emt 0:00:00]} Qe7 {[%emt 0:00:00]} 40. Qd1 {[%emt 0:00:00]} ({Don't take} 40. Rxc6 $6 Qxd6 41. Rxd6 Rc1+ 42. Kg2 Kf7 $16) 40... Qf7 {[%emt 0:00:00]} (40... Qh7 $16 41. b4 Qf5) 41. b4 {[%emt 0:06:25]} Rc7 {[%emt 0:19:37]} 42. Qf3 {[%emt 0:07:56]} Kd7 {[%emt 0:02:16]} 43. Rc5 {[%emt 0:03:59] Threatens to win with Rxe5.} h4 {[%emt 0:10:06]} (43... Kd6 $142 44. h4 Qg6) 44. Rxe5 {[%emt 0:02:25]} hxg3 {[%emt 0:00:32]} (44... Kd8 $142) 45. hxg3 {[%emt 0:00:25]} Kc8 {[%emt 0:00:55]} 46. Qf5+ {[%emt 0:04:13]} Kb7 {[%emt 0:00:48]} 47. Re6 {[%emt 0:01:59] Strongly threatening b5.} Re7 {[%emt 0:00:32]} 48. Rxf6 {[%emt 0:00:41]} Qc4 {[%emt 0:00:21]} 49. Qc5 {[%emt 0:04:36]} ({Not} 49. Rf8 Qd5 50. Rb8+ Kc7 51. Rc8+ Kb6 52. Qxd5 cxd5 $18) 49... Qe4 {[%emt 0:00:40]} (49... Re1+ $142 50. Kh2 Qxc5 51. bxc5 Re5) 50. b5 {[%emt 0:02:18][%cal Rb5c6]} Qe1+ {[%emt 0:00:35]} 51. Kg2 {[%emt 0:00:07]} Qe4+ {[%emt 0:00:08] [#]} 52. Rf3 $1 {[%emt 0:00:21]} cxb5 {[%emt 0:00:45]} 53. Qxb5+ {[%emt 0:00:05]} Ka8 {[%emt 0:00:35]} 54. Qd3 {[%emt 0:00:25]} Qb7 {[%emt 0:00:14]} 55. Qa3+ {[%emt 0:00:12]} (55. Kh2 $142 Re8 56. Qa3+ Qa7 57. Qb4 Rc8 58. Ra3 Qxa3 59. Qxa3+ Kb7 60. g4) 55... Kb8 {[%emt 0:00:38]} 56. Qb3 {[%emt 0:00:06] Weighted Error Value: White=0.16 (very precise) /Black=0.43} 1-0

[Event "Krakow Championship-A 2022"]
[Site "Krakow"]
[Date "2022.06.27"]
[Round "4.10"]
[White "Danielyan, Vahe"]
[Black "Mikrut, Dariusz"]
[Result "1-0"]
[ECO "B52"]
[WhiteElo "2324"]
[BlackElo "2361"]
[Annotator "TA"]
[PlyCount "123"]
[EventDate "2022.06.25"]
[EventType "swiss"]
[EventCountry "POL"]
[SourceTitle "playchess.com"]
[Source "ChessBase"]
[SourceQuality "1"]
[TimeControl "40/5400+30:1800+30"]

{[%evp 14,123,27,22,24,22,24,22,22,16,12,13,11,0,27,0,19,18,24,-88,-94,-70,-65,-124,-100,-174,-48,-85,-32,-67,-11,-69,-47,-60,0,0,0,0,0,0,0,-191,0,0,114,-105,309,-104,-77,-114,-25,0,0,0,0,-451,-433,-427,-186,-179,-173,-172,0,0,122,117,99,0,0,-8,-6,-8,0,0,0,0,303,466,383,172,997,906,921,0,0,0,0,0,0,0,0,0,0,0,0,0,5524,5490,6093,5550,6075,6075,29980,29981,29981,29982,29982,29983,29983,29984,29984,29982]} 1. e4 {[%emt 0:00:03]} c5 {[%emt 0:09:41]} 2. Nf3 {[%emt 0:00:06]} d6 {[%emt 0:00:08]} 3. Bb5+ {[%emt 0:00:06]} Bd7 {[%emt 0:00:18]} 4. Bxd7+ {[%emt 0:00:06]} Nxd7 {[%emt 0:00:05]} 5. O-O {[%emt 0:00:09]} Ngf6 {[%emt 0:00:03]} 6. Qe2 {[%emt 0:00:06]} e6 {[%emt 0:00:05]} 7. d4 {[%emt 0:00:11] 7.c3 is becoming the main line.} cxd4 {[%emt 0:00:23]} 8. Nxd4 {[%emt 0:00:05]} a6 {[%emt 0:00:25] B52: Sicilian: Moscow Variation with 3...Bd7.} 9. c4 {[%emt 0:00:08]} Rc8 {[%emt 0:00:15] 9...g6 is vanishing.} 10. b3 {[%emt 0:00:42]} g6 {[%emt 0:00:39] The position is equal.} 11. Bb2 {[%emt 0:00:35]} Bg7 {[%emt 0:00:06]} 12. Nc3 {[%emt 0:01:28]} O-O {[%emt 0:00:30][%cal Od6d5]} 13. Rad1 {[%emt 0:00:05]} Qc7 {[%emt 0:00:41]} 14. f4 {[%emt 0:02:04]} Rfe8 {[%emt 0:01:56]} 15. Kh1 {[%emt 0:00:08][%cal Oe4e5] [#]} e5 $146 {[%emt 0:26:47]} ({Predecessor:} 15... Qa5 16. Qd2 Qh5 17. Nf3 Nc5 18. e5 dxe5 19. Nxe5 Qf5 20. Qe3 h5 21. b4 Nce4 {1-0 (34) Kovalchuk,A (2235)-Zakharov,A (2388) Taganrog 2013}) 16. Ndb5 {[%emt 0:12:00]} axb5 $17 {[%emt 0:02:43]} 17. Nxb5 {[%emt 0:00:07]} Qb8 {[%emt 0:03:30][%cal Od6d5]} 18. f5 {[%emt 0:00:33]} (18. Nxd6 $15 exf4 19. Nxc8 Qxc8 20. Rxf4) 18... Bf8 {[%emt 0:02:09]} 19. Rd3 {[%emt 0:03:05]} (19. Bc1 $17 {keeps fighting.}) 19... d5 {[%emt 0:06:56]} (19... Be7 $19 {Threatens to win with ...Nc5.} 20. fxg6 fxg6) 20. exd5 {[%emt 0:02:18]} Nh5 {[%emt 0:06:44]} (20... g5 $17) 21. Qe1 {[%emt 0:10:34]} Nf4 {[%emt 0:05:18]} ({Black should play} 21... g5 $15) 22. Rdf3 {[%emt 0:00:41]} (22. fxg6 $11 hxg6 23. Rdf3) 22... g5 $1 $15 {[%emt 0:00:18]} 23. g3 {[%emt 0:03:39]} e4 {[%emt 0:07:37]} (23... g4 $15 24. gxf4 gxf3 25. fxe5 Rxe5 26. Rg1+ (26. Qg3+ Kh8 $15) 26... Kh8) 24. Rxf4 $11 {[%emt 0:00:24]} gxf4 {[%emt 0:00:09]} 25. gxf4 {[%emt 0:00:05]} f6 {[%emt 0:00:48]} 26. Rg1+ {[%emt 0:01:28]} Kh8 {[%emt 0:07:02]} 27. Qh4 {[%emt 0:02:49]} (27. Qg3 $11 Bh6 28. Qh4) 27... Bg7 $2 {[%emt 0:00:15]} (27... Re7 $1 $19 28. Bxf6+ Nxf6 29. Qxf6+ Rg7) 28. Nd4 {[%emt 0:00:13][%cal Og1g7]} Qa7 {[%emt 0:04:09] [#]} (28... Rg8 $11) 29. a4 $2 {[%emt 0:01:40] White is more active.} (29. Rxg7 $1 $16 {[%mdl 512] is forced if you want to stay better.} Kxg7 30. Ne6+ Rxe6 31. fxe6 Qxa2 32. Qg3+ Kf8 33. exd7 Qb1+ 34. Qg1 Qxg1+ 35. Kxg1) 29... Qa5 $2 {[%emt 0:03:35][%mdl 8192] [#]} (29... Rg8 $17 {stays on course.} 30. Rg3 Bf8) 30. Ne6 $2 {[%emt 0:03:36]} ({White must play} 30. Rxg7 $1 $18 {[%mdl 512]} Kxg7 31. Ne6+ Rxe6 32. fxe6) 30... Rg8 $17 {[%emt 0:00:13] ...Qd2 is the strong threat.} 31. Qf2 {[%emt 0:12:29] Prevents Qd2.} Qb4 {[%emt 0:02:37]} (31... Bh6 $17 {And now ...Rxg1+ would win.} 32. Ng5 Rg7) 32. Rg3 $11 {[%emt 0:00:05]} e3 {[%emt 0:05:23]} 33. Qxe3 {[%emt 0:01:48]} Bh6 {[%emt 0:04:10]} 34. Ng5 $2 {[%emt 0:01:45][%mdl 8192]} (34. Rh3 $11 {and White is okay.} Bf8 35. Qf2) 34... Bxg5 $19 {[%emt 0:00:22]} 35. fxg5 {[%emt 0:00:26]} Rge8 {[%emt 0:01:11]} (35... Rce8 $142 36. Qc3 Qe7 37. Qxf6+ Nxf6 38. Bxf6+ Qxf6 $1 39. gxf6 Ref8) 36. Qc3 {[%emt 0:06:03]} Re1+ {[%emt 0:00:26]} 37. Kg2 {[%emt 0:00:08]} Qxc3 {[%emt 0:00:41]} ({Not} 37... Re2+ 38. Kf1 Qxc3 39. Bxc3 Rxh2 40. gxf6 $11) (37... Qe7 $1 $19 {[%cal Re7e2] Strongly threatening ...Qe2+.} 38. Qxf6+ Nxf6 39. Bxf6+ Qxf6 $1 40. gxf6 Re5) 38. Bxc3 $11 {[%emt 0:00:18]} Re7 {[%emt 0:00:13]} (38... Rb1 $11) 39. gxf6 $16 {[%emt 0:02:39]} ({Weaker is} 39. Bxf6+ Nxf6 40. gxf6 Rf7 $17) 39... Rf7 {[%emt 0:00:05]} 40. Re3 {[%emt 0:00:04] Against Re8} ({White should try} 40. Kf3 $1 $16) 40... Kg8 {[%emt 0:00:33]} 41. Kf3 $132 {[%emt 0:37:37][%mdl 2048] White puts up resistance} Nxf6 {[%emt 0:02:20]} 42. Kf4 {[%emt 0:00:00]} h6 {[%emt 0:03:14]} 43. Bxf6 {[%emt 0:00:00]} Rxf6 {[%emt 0:00:05]} 44. Re6 {[%emt 0:00:00]} Rcf8 {[%emt 0:06:18][%mdl 8192]} (44... Kg7 $11) 45. Rxf6 $18 {[%emt 0:00:00]} Rxf6 {[%emt 0:00:05][%mdl 4096] Endgame KR-KP} 46. c5 {[%emt 0:00:00] Prevents Rb6.} Ra6 $2 {[%emt 0:03:43] [#]} (46... Rf8) 47. Ke5 $1 {[%emt 0:00:00]} Kf7 {[%emt 0:00:06] [#]} 48. d6 $2 {[%emt 0:00:00]} ({White has to play} 48. h3 $1 $18 h5 49. h4) 48... Ra8 $11 {[%emt 0:04:59] aiming for ...Re8+.} 49. Kd5 {[%emt 0:00:00]} Rg8 {[%emt 0:00:39]} 50. a5 {[%emt 0:00:00][%cal Oa5a6]} Rg5 {[%emt 0:04:50]} 51. c6 {[%emt 0:00:00]} bxc6+ {[%emt 0:01:50]} (51... Rxf5+ $2 52. Ke4 Ke6 53. cxb7 $18) 52. Kxc6 {[%emt 0:00:00]} Rxf5 {[%emt 0:00:20]} 53. b4 {[%emt 0:00:00][%cal Bb3b4,Bb4b5][%mdl 32] Hoping for a6.} Ke6 {[%emt 0:00:34]} 54. a6 {[%emt 0:00:00] Black must now prevent a7.} Rf7 {[%emt 0:00:58][%mdl 8192]} (54... Rd5 $11) 55. b5 $18 {[%emt 0:00:00]} Ra7 {[%emt 0:00:54]} 56. h3 {[%emt 0:00:00][%cal Bh2h3,Bh3h4][%mdl 32]} h5 {[%emt 0:00:38]} 57. h4 {[%emt 0:00:00] Threatening mate with Kb6.} Ra8 {[%emt 0:07:15]} 58. d7 {[%emt 0:00:00] White mates.} Ke7 {[%emt 0:00:17]} 59. Kb7 {[%emt 0:00:00]} Rd8 {[%emt 0:00:42]} 60. a7 {[%emt 0:00:00]} Rxd7+ {[%emt 0:01:00]} 61. Ka6 {[%emt 0:00:00]} Rd8 {[%emt 0:00:30]} 62. b6 {[%emt 0:00:00] Both players deserved the win here.  Weighted Error Value: White=0.62/Black=0.77} ({Inferior is} 62. Kb7 Kd6 $11) 1-0